bitfinex-derivatives/quotes_SOLF0:USTF0_20240913
["timestamp","ask_amount","ask_price","bid_price","bid_amount"]
[1726215922072,11.43,134.26,134.23,171.61758128]
[1726215926977,1.3714,134.3,134.25,3.3517]
[1726215927166,11.43,134.28,134.25,3.3517]
[1726215929280,1.3714,134.3,134.25,3.3517]
[1726215929475,11.43,134.28,134.25,3.3517]
[1726215930178,11.43,134.28,134.24,3.3519]
[1726215930382,11.43,134.27,134.24,3.3519]
[1726215931280,11.43,134.25,134.23,168.26548128]
[1726215931480,11.43,134.25,134.23,171.61758128]
[1726215932085,11.43,134.25,134.23,168.26548128]
[1726215932288,11.43,134.24,134.23,168.26548128]
[1726215938893,11.43,134.24,134.21,3.3526]
[1726215939094,11.43,134.23,134.21,3.3526]
[1726215939997,11.43,134.24,134.21,3.3526]
[1726215943490,11.43,134.23,134.21,3.3526]
[1726215946000,11.43,134.23,134.2,3.3529]
[1726215946493,11.43,134.23,134.21,3.3527]
[1726215951204,11.43,134.23,134.19,1.345]
[1726215951508,11.43,134.22,134.17,11.43]
[1726215952105,11.43,134.22,134.17,15.10089079]
[1726215952408,11.43,134.2,134.16,11.43]
[1726215952607,11.43,134.2,134.15,2.6855]
[1726215952798,11.43,134.2,134.15,1.3231]
[1726215953000,11.43,134.2,134.17,3.3537]
[1726215953200,5.09550782,134.29,134.17,3.3537]
[1726215953201,11.43,134.19,134.17,3.3537]
[1726215955302,11.43,134.19,134.16,3.3539]
[1726215958313,11.43,134.18,134.16,3.3539]
[1726215960717,1.3014,134.21,134.17,3.3537]
[1726215960918,1.3014,134.21,134.15,12.7531]
[1726215960919,11.43,134.21,134.16,11.43]
[1726215961320,2.7994,134.25,134.18,11.43]
[1726215961619,11.43,134.22,134.18,11.43]
[1726215961813,11.43,134.22,134.15,1.3231]
[1726215961814,2.7994,134.25,134.19,11.43]
[1726215962001,11.43,134.24,134.19,11.43]
[1726215962206,11.43,134.24,134.2,11.43]
[1726215962405,1.3459,134.26,134.2,11.43]
[1726215962617,11.43,134.24,134.2,11.43]
[1726215963320,11.43,134.24,134.21,3.3526]
[1726215964511,11.43,134.24,134.2,14.7829]
[1726215964720,11.43,134.23,134.2,3.3529]
[1726215966811,11.43,134.23,134.21,3.3527]
[1726215967121,11.43,134.24,134.21,3.3527]
[1726215969319,11.43,134.24,134.22,3.3524]
[1726215977032,11.43,134.23,134.21,3.3526]
[1726215979640,11.43,134.23,134.22,3.3525]
[1726215979937,1.3459,134.26,134.22,3.3525]
[1726215979938,11.43,134.24,134.22,3.3525]
[1726215981041,1.3459,134.26,134.22,3.3525]
[1726215981240,12.7759,134.26,134.23,3.3522]
[1726215982143,12.7759,134.26,134.22,3.3524]
[1726215984241,12.7759,134.26,134.23,3.3522]
[1726215985541,1.3459,134.26,134.23,3.3522]
[1726215986147,12.7759,134.26,134.23,3.3522]
[1726215987850,1.3459,134.26,134.23,3.3522]
[1726215988040,12.7759,134.26,134.23,3.3522]
[1726215990854,11.43,134.25,134.22,3.3524]
[1726215995155,12.7759,134.26,134.22,3.3524]
[1726215998169,12.7759,134.26,134.23,3.3522]
[1726216001667,12.7759,134.26,134.22,3.3525]
[1726216002968,11.43,134.26,134.22,3.3525]
[1726216007972,11.43,134.26,134.22,14.7825]
[1726216015683,4.0821,134.28,134.23,3.3522]
[1726216015881,11.43,134.26,134.23,3.3522]
[1726216016775,11.43,134.26,134.22,14.7824]
[1726216022689,11.43,134.25,134.2,168.30539025]
[1726216022879,11.43,134.23,134.2,168.30539025]
[1726216024792,11.43,134.23,134.2,171.65829025]
[1726216027891,4.0821,134.28,134.2,171.65829025]
[1726216028095,11.43,134.23,134.2,171.65829025]
[1726216033994,11.43,134.23,134.2,168.30539025]
[1726216036087,11.43,134.25,134.2,179.73539025]
[1726216038494,11.43,134.25,134.2,183.08829025]
[1726216038693,4.0821,134.28,134.2,183.08829025]
[1726216038894,11.43,134.25,134.2,183.08829025]
[1726216043695,4.0821,134.28,134.21,14.7827]
[1726216043896,4.0821,134.28,134.23,11.43]
[1726216044099,2.7578,134.28,134.23,11.43]
[1726216044488,14.1878,134.28,134.23,11.43]
[1726216045791,2.7578,134.28,134.24,11.43]
[1726216045993,2.7578,134.28,134.25,11.43]
[1726216047502,15.14300782,134.29,134.25,11.43]
[1726216048002,11.43,134.29,134.25,11.43]
[1726216049002,11.43,134.29,134.24,11.43]
[1726216049795,11.43,134.29,134.24,14.7819]
[1726216049990,11.43,134.29,134.25,11.43]
[1726216051103,2.7335,134.32,134.25,14.7817]
[1726216051305,11.43,134.3,134.25,11.43]
[1726216052103,15.15456228,134.3,134.25,11.43]
[1726216053504,15.15456228,134.3,134.21,4.1451]
[1726216053505,11.43,134.29,134.23,3.3522]
[1726216053703,11.43,134.29,134.23,14.7822]
[1726216053898,11.43,134.29,134.24,11.43]
[1726216055009,11.43,134.29,134.24,14.782]
[1726216055307,11.43,134.3,134.24,11.43]
[1726216055698,11.43,134.3,134.26,11.43]
[1726216056405,11.43,134.29,134.24,11.43]
[1726216058503,11.43,134.29,134.24,14.7819]
[1726216059603,11.43,134.29,134.24,3.3519]
[1726216059802,11.43,134.29,134.24,14.7819]
[1726216060009,3.6515095,134.31,134.24,14.7819]
[1726216060317,11.43,134.29,134.24,14.7819]
[1726216063922,11.43,134.29,134.24,11.43]
[1726216067124,3.7212076,134.3,134.25,11.43]
[1726216067317,11.43,134.3,134.25,11.43]
[1726216067518,15.23767797,134.3,134.25,11.43]
[1726216069421,15.23767797,134.3,134.24,3.3518]
[1726216069629,15.23767797,134.3,134.24,14.7818]
[1726216071928,15.23767797,134.3,134.25,14.7817]
[1726216074524,15.23767797,134.3,134.24,3.3518]
[1726216074732,15.23767797,134.3,134.25,11.43]
[1726216075523,41.4180407,134.4,134.28,11.43]
[1726216075728,108.65758479,134.45,134.29,11.43]
[1726216075729,11.43,134.34,134.29,11.43]
[1726216076025,3.67807096,134.34,134.29,11.43]
[1726216076227,11.43,134.34,134.29,14.7806]
[1726216076424,15.2355307,134.34,134.29,14.7806]
[1726216076825,11.43,134.34,134.29,14.7806]
[1726216078537,11.43,134.34,134.28,3.3508]
[1726216078835,11.43,134.34,134.29,11.43]
[1726216080142,11.43,134.34,134.29,14.7807]
[1726216082730,2.7932,134.37,134.31,11.43]
[1726216082944,11.43,134.35,134.31,11.43]
[1726216084941,11.43,134.34,134.3,11.43]
[1726216087128,11.43,134.35,134.3,11.43]
[1726216087329,11.43,134.35,134.29,11.43]
[1726216088029,11.43,134.33,134.27,3.3511]
[1726216088233,11.43,134.33,134.28,11.43]
[1726216088531,11.43,134.32,134.28,11.43]
[1726216088931,11.43,134.32,134.27,11.43]
[1726216089128,15.22470938,134.32,134.27,11.43]
[1726216093948,11.43,134.31,134.26,11.43]
[1726216094642,15.22452973,134.31,134.26,11.43]
[1726216095545,11.43,134.34,134.29,11.43]
[1726216095955,11.43,134.34,134.3,11.43]
[1726216096250,15.18987479,134.34,134.3,11.43]
[1726216096951,2.7932,134.37,134.3,11.43]
[1726216097140,11.43,134.35,134.3,11.43]
[1726216097344,15.17767121,134.35,134.3,11.43]
[1726216114069,3.74767121,134.35,134.3,14.7803]
[1726216114263,2.7932,134.37,134.31,11.43]
[1726216114471,11.43,134.36,134.31,11.43]
[1726216115072,3.81734853,134.36,134.31,14.7802]
[1726216115368,15.24734853,134.36,134.31,11.43]
[1726216117868,15.24734853,134.36,134.31,14.7802]
[1726216120862,3.81734853,134.36,134.31,14.7802]
[1726216123766,3.81734853,134.36,134.32,11.43]
[1726216128774,3.81734853,134.36,134.27,3.71227364]
[1726216128973,11.43,134.34,134.26,2.7455]
[1726216129173,11.43,134.34,134.29,11.43]
[1726216129369,11.43,134.34,134.29,14.7807]
[1726216130467,3.70781662,134.35,134.3,3.3505]
[1726216130667,11.43,134.35,134.31,11.43]
[1726216130867,15.15085264,134.35,134.31,11.43]
[1726216131069,11.43,134.35,134.31,11.43]
[1726216131975,3.81433952,134.36,134.31,11.43]
[1726216132573,15.24433952,134.36,134.31,11.43]
[1726216136073,15.24433952,134.36,134.31,14.7802]
[1726216136874,15.24433952,134.36,134.32,11.43]
[1726216136875,11.43,134.36,134.32,11.43]
[1726216144385,14.2232,134.37,134.32,11.43]
[1726216151088,11.43,134.41,134.36,11.43]
[1726216151789,3.75502443,134.4,134.36,11.43]
[1726216153191,2.8101,134.42,134.36,11.43]
[1726216153192,14.2401,134.42,134.36,11.43]
[1726216153577,18.00033767,134.42,134.36,11.43]
[1726216163498,11.43,134.39,134.34,3.3494]
[1726216163710,11.43,134.39,134.33,2.7707]
[1726216163711,11.43,134.36,134.32,1.3426]
[1726216165710,6.57033767,134.42,134.32,1.3426]
[1726216165908,11.43,134.36,134.32,1.3426]
[1726216170013,11.43,134.35,134.28,1.4094]
[1726216170409,11.43,134.35,134.29,11.43]
[1726216170912,11.43,134.35,134.29,14.7806]
[1726216173506,11.43,134.34,134.29,11.43]
[1726216181622,11.43,134.34,134.29,14.7807]
[1726216181816,2.8074,134.36,134.29,14.7807]
[1726216182120,11.43,134.35,134.29,14.7806]
[1726216186228,11.43,134.35,134.3,14.7804]
[1726216186827,3.76117032,134.37,134.31,14.7801]
[1726216186828,15.19117032,134.37,134.31,14.7801]
[1726216187030,11.43,134.37,134.31,11.43]
[1726216187420,15.11983758,134.36,134.31,11.43]
[1726216187620,11.43,134.36,134.31,11.43]
[1726216188230,15.17608851,134.36,134.31,11.43]
[1726216190531,15.17608851,134.36,134.3,14.7804]
[1726216191328,11.43,134.34,134.3,14.7804]
[1726216192128,11.43,134.34,134.29,3.3506]
[1726216192321,11.43,134.34,134.29,14.7806]
[1726216202025,11.43,134.34,134.3,3.3504]
[1726216202240,11.43,134.34,134.3,14.7804]
[1726216202941,11.43,134.35,134.3,14.7804]
[1726216204233,11.43,134.34,134.3,3.3504]
[1726216209043,11.43,134.33,134.27,1.3258]
[1726216209241,11.43,134.33,134.27,12.7558]
[1726216211047,3.69570371,134.34,134.25,2.768]
[1726216211048,11.43,134.32,134.25,2.768]
[1726216211249,11.43,134.3,134.25,2.768]
[1726216211442,11.43,134.3,134.26,11.43]
[1726216211945,11.43,134.3,134.26,14.7813]
[1726216212139,2.6773,134.33,134.26,14.7813]
[1726216212345,11.43,134.32,134.27,11.43]
[1726216213237,11.43,134.32,134.27,14.7811]
[1726216214147,11.43,134.32,134.26,3.3514]
[1726216214343,11.43,134.32,134.27,11.43]
[1726216214747,11.43,134.31,134.26,3.3514]
[1726216215043,11.43,134.31,134.26,14.7814]
[1726216218555,2.6773,134.33,134.27,11.43]
[1726216218755,11.43,134.32,134.27,11.43]
[1726216219547,11.43,134.32,134.27,14.7811]
[1726216219749,11.43,134.32,134.27,11.43]
[1726216221039,11.43,134.31,134.27,11.43]
[1726216221447,11.43,134.31,134.26,183.0326991]
[1726216222851,11.43,134.3,134.26,168.2513991]
[1726216223059,11.43,134.28,134.25,1.3734]
[1726216223247,11.43,134.28,134.22,1.4389]
[1726216223248,11.43,134.28,134.23,11.43]
[1726216223450,11.43,134.28,134.23,14.7821]
[1726216225446,11.43,134.27,134.22,1.4389]
[1726216225653,11.43,134.26,134.21,14.7827]
[1726216225949,11.43,134.27,134.22,11.43]
[1726216226155,11.43,134.27,134.22,14.7825]
[1726216227550,11.43,134.27,134.21,14.7827]
[1726216227952,11.43,134.25,134.21,14.7827]
[1726216228149,11.43,134.25,134.21,11.43]
[1726216228653,11.43,134.25,134.21,14.7827]
[1726216240969,11.43,134.25,134.21,3.3527]
[1726216241364,11.43,134.25,134.21,14.7827]
[1726216243062,11.43,134.25,134.21,3.3527]
[1726216243364,11.43,134.25,134.21,14.7827]
[1726216244967,3.65914348,134.27,134.22,14.7824]
[1726216245200,3.9897,134.33,134.23,11.43]
[1726216245366,11.43,134.28,134.23,11.43]
[1726216246557,11.43,134.28,134.22,14.7824]
[1726216247067,11.43,134.27,134.22,14.7824]
[1726216252179,11.43,134.27,134.22,3.3524]
[1726216263276,11.43,134.26,134.21,3.3526]
[1726216266285,11.43,134.26,134.21,14.7826]
[1726216267491,116.35625852,134.31,134.21,14.7826]
[1726216267692,11.43,134.26,134.21,14.7826]
[1726216268786,11.43,134.26,134.22,3.3524]
[1726216269490,11.43,134.26,134.22,14.7824]
[1726216275398,116.35625852,134.31,134.22,11.43]
[1726216275599,11.43,134.28,134.23,14.7821]
[1726216276283,11.43,134.28,134.23,11.43]
[1726216276498,11.43,134.27,134.2,2.6869]
[1726216276898,11.43,134.27,134.22,14.7823]
[1726216277686,11.43,134.26,134.22,14.7823]
[1726216277896,11.43,134.26,134.21,3.3526]
[1726216278802,15.06511912,134.26,134.21,3.3526]
[1726216279002,15.06511912,134.26,134.2,16.0989]
[1726216279405,11.43,134.26,134.2,16.0989]
[1726216279910,15.24512348,134.26,134.2,16.0989]
[1726216280403,11.43,134.25,134.2,16.0989]
[1726216282505,11.43,134.26,134.21,11.43]
[1726216283808,11.43,134.26,134.21,14.7826]
[1726216284100,11.43,134.26,134.21,3.3526]
[1726216284305,11.43,134.25,134.2,4.6688]
[1726216285901,11.43,134.24,134.19,14.7832]
[1726216286104,11.43,134.22,134.19,11.43]
[1726216286502,11.43,134.22,134.18,168.34143428]
[1726216288004,11.43,134.22,134.18,171.69493428]
[1726216289606,11.43,134.21,134.18,168.34143428]
[1726216289815,11.43,134.21,134.16,11.43]
[1726216290115,11.43,134.2,134.16,11.43]
[1726216290609,11.43,134.2,134.16,14.784]
[1726216293825,11.43,134.2,134.15,4.6609]
[1726216294121,11.43,134.18,134.11,1.3593]
[1726216294315,11.43,134.18,134.13,11.43]
[1726216294525,11.43,134.18,134.13,14.7845]
[1726216295002,11.43,134.18,134.13,3.3545]
[1726216295207,11.43,134.18,134.14,11.43]
[1726216298007,2.7742,134.21,134.14,14.7843]
[1726216298203,11.43,134.19,134.15,11.43]
[1726216298809,11.43,134.2,134.15,14.784]
[1726216302018,2.7742,134.21,134.14,3.3544]
[1726216302208,11.43,134.19,134.14,14.7844]
[1726216302414,2.7742,134.21,134.16,11.43]
[1726216302612,14.2042,134.21,134.16,14.7838]
[1726216303014,2.7742,134.21,134.16,11.43]
[1726216303312,14.2042,134.21,134.16,11.43]
[1726216304320,1.3035,134.24,134.17,11.43]
[1726216304525,11.43,134.23,134.19,11.43]
[1726216304858,11.43,134.24,134.19,11.43]
[1726216305527,2.7374,134.28,134.21,11.43]
[1726216305730,2.7374,134.28,134.22,11.43]
[1726216305731,11.43,134.26,134.22,11.43]
[1726216306024,11.43,134.27,134.22,11.43]
[1726216306426,2.7374,134.28,134.23,11.43]
[1726216306618,14.1674,134.28,134.23,11.43]
[1726216311936,11.43,134.29,134.25,11.43]
[1726216318835,11.43,134.28,134.23,11.43]
[1726216319428,11.43,134.27,134.23,11.43]
[1726216319626,11.43,134.27,134.22,14.7824]
[1726216322133,1.3645,134.29,134.22,3.3524]
[1726216322433,11.43,134.26,134.22,11.43]
[1726216322734,11.43,134.25,134.2,14.7828]
[1726216323738,11.43,134.25,134.21,3.3527]
[1726216327037,11.43,134.26,134.21,14.7827]
[1726216341945,2.718,134.29,134.22,3.3525]
[1726216342242,11.43,134.27,134.21,11.43]
[1726216342442,11.43,134.27,134.21,3.3526]
[1726216342644,11.43,134.27,134.21,14.7826]
[1726216344857,11.43,134.26,134.21,14.7826]
[1726216347350,11.43,134.27,134.21,14.7826]
[1726216348950,3.72707618,134.28,134.21,14.7826]
[1726216349154,11.43,134.27,134.21,14.7826]
[1726216349355,15.13909002,134.27,134.21,14.7826]
[1726216351856,11.43,134.27,134.21,14.7826]
[1726216352262,15.17710903,134.27,134.21,14.7826]
[1726216355561,11.43,134.27,134.22,3.3525]
[1726216359664,11.43,134.27,134.21,14.7827]
[1726216367267,11.43,134.27,134.21,14.70662937]
[1726216380286,11.43,134.27,134.21,3.3527]
[1726216380488,11.43,134.26,134.21,3.3527]
[1726216380677,11.43,134.24,134.19,4.1613]
[1726216380889,11.43,134.23,134.19,12.8584]
[1726216383380,11.43,134.23,134.19,11.43]
[1726216385791,11.43,134.22,134.18,11.43]
[1726216387392,11.43,134.22,134.17,14.7837]
[1726216393791,11.43,134.21,134.16,14.7839]
[1726216395130,15.20321202,134.21,134.16,14.7839]
[1726216396695,11.43,134.21,134.16,14.7839]
[1726216397084,11.43,134.21,134.17,3.3537]
[1726216398491,3.70758445,134.23,134.17,3.3537]
[1726216398695,3.70758445,134.23,134.17,14.7837]
[1726216398993,11.43,134.22,134.17,14.7837]
[1726216406699,11.43,134.22,134.17,3.3537]
[1726216411845,11.43,134.21,134.17,3.3537]
[1726216413206,11.43,134.21,134.16,14.7838]
[1726216413609,11.43,134.2,134.16,3.3538]
[1726216414813,11.43,134.18,134.14,16.0933]
[1726216436848,2.8425,134.24,134.15,3.3542]
[1726216437151,11.43,134.19,134.15,3.3542]
[1726216440741,6.63371288,134.24,134.16,11.43]
[1726216440942,11.43,134.21,134.16,11.43]
[1726216441739,11.43,134.21,134.16,14.7838]
[1726216442546,11.43,134.2,134.16,14.7838]
[1726216443643,11.43,134.19,134.16,3.3538]
[1726216446552,11.43,134.18,134.15,3.3542]
[1726216446958,11.43,134.18,134.14,12.739]
[1726216447356,11.43,134.18,134.14,1.309]
[1726216447552,11.43,134.18,134.14,12.739]
[1726216447755,11.43,134.18,134.14,16.0935]
[1726216452262,11.43,134.18,134.14,4.6635]
[1726216452461,11.43,134.18,134.14,16.0935]
[1726216459558,11.43,134.18,134.14,4.6635]
[1726216459761,11.43,134.18,134.14,3.3545]
[1726216462561,6.63371288,134.24,134.12,3.72324558]
[1726216462562,6.63371288,134.24,134.15,14.7842]
[1726216462869,11.43,134.19,134.15,183.16761029]
[1726216464967,11.43,134.18,134.15,171.73761029]
[1726216465565,11.43,134.18,134.15,168.38341029]
[1726216467661,11.43,134.18,134.15,171.73761029]
[1726216468766,11.43,134.18,134.15,168.38341029]
[1726216479675,11.43,134.18,134.13,16.1429]
[1726216480589,11.43,134.18,134.14,3.3544]
[1726216481476,11.43,134.17,134.14,3.3544]
[1726216487119,6.63371288,134.24,134.15,3.3541]
[1726216487287,11.43,134.19,134.15,3.3541]
[1726216488188,11.43,134.19,134.14,14.7844]
[1726216494396,11.43,134.2,134.15,11.43]
[1726216494693,11.43,134.19,134.15,14.7841]
[1726216496183,11.43,134.19,134.16,3.354]
[1726216497090,11.43,134.2,134.16,3.354]
[1726216497291,11.43,134.2,134.17,3.3537]
[1726216501192,11.43,134.2,134.17,14.7837]
[1726216501384,11.43,134.21,134.17,14.7837]
[1726216501988,11.43,134.21,134.18,3.3535]
[1726216502992,11.43,134.21,134.17,11.43]
[1726216502993,6.63371288,134.24,134.17,14.7836]
[1726216503293,11.43,134.21,134.17,3.3536]
[1726216504599,6.63371288,134.24,134.18,3.3534]
[1726216504912,11.43,134.21,134.18,3.3534]
[1726216508297,11.43,134.22,134.18,3.3534]
[1726216510498,11.43,134.22,134.19,3.3532]
[1726216511698,11.43,134.23,134.19,3.3532]
[1726216512091,11.43,134.23,134.19,14.7832]
[1726216513299,11.43,134.23,134.2,3.353]
[1726216513708,14.2725,134.24,134.21,3.3527]
[1726216513895,11.43,134.24,134.21,3.3527]
[1726216514095,3.70395469,134.27,134.21,3.3527]
[1726216514334,11.43,134.24,134.21,3.3527]
[1726216514887,11.43,134.24,134.2,14.7829]
[1726216519004,11.43,134.24,134.2,3.3529]
[1726216520608,11.43,134.23,134.2,3.3529]
[1726216521627,2.6124,134.26,134.2,14.7829]
[1726216521628,11.43,134.24,134.2,14.7829]
[1726216522411,2.6124,134.26,134.2,14.7829]
[1726216522610,11.43,134.25,134.2,14.7829]
[1726216529915,11.43,134.25,134.2,11.43]
[1726216546817,15.375,134.26,134.2,11.43]
[1726216549027,15.375,134.26,134.2,14.783]
[1726216551334,11.43,134.25,134.2,14.783]
[1726216551964,11.43,134.25,134.2,11.43]
[1726216556940,11.43,134.25,134.2,14.7829]
[1726216561944,11.43,134.25,134.2,11.43]
[1726216563545,11.43,134.25,134.18,3.3533]
[1726216563749,11.43,134.25,134.18,14.7833]
[1726216563944,11.43,134.24,134.18,14.7833]
[1726216564938,11.43,134.23,134.18,3.3533]
[1726216565141,11.43,134.23,134.18,14.7833]
[1726216570645,11.43,134.21,134.17,6.1068]
[1726216570850,11.43,134.21,134.17,17.5368]
[1726216571648,235.38036918,134.26,134.18,14.7835]
[1726216571845,2.6124,134.26,134.22,11.43]
[1726216572059,14.0424,134.26,134.22,11.43]
[1726216575060,11.43,134.25,134.22,11.43]
[1726216576458,11.43,134.25,134.21,14.7827]
[1726216577556,11.43,134.25,134.21,11.43]
[1726216582761,11.43,134.24,134.21,11.43]
[1726216589866,11.43,134.24,134.19,3.3531]
[1726216590071,11.43,134.23,134.19,3.3531]
[1726216590764,11.43,134.23,134.18,14.7834]
[1726216591066,11.43,134.22,134.17,2.7532]
[1726216591471,11.43,134.22,134.18,14.7835]
[1726216591862,2.6124,134.26,134.19,3.353]
[1726216592176,11.43,134.23,134.19,3.353]
[1726216593368,11.43,134.23,134.18,3.3534]
[1726216593780,11.43,134.23,134.18,14.7834]
[1726216594071,11.43,134.23,134.19,3.3532]
[1726216609538,11.43,134.22,134.18,3.3534]
[1726216609784,11.43,134.22,134.17,12.8676]
[1726216611478,11.43,134.22,134.18,3.3534]
[1726216614787,11.43,134.22,134.17,12.8676]
[1726216615380,11.43,134.22,134.19,3.3531]
[1726216617391,11.43,134.23,134.19,3.3531]
[1726216619694,2.6124,134.26,134.19,3.3531]
[1726216619892,11.43,134.24,134.2,3.3528]
[1726216621896,2.6124,134.26,134.2,3.3528]
[1726216622283,2.6124,134.26,134.19,11.43]
[1726216622284,11.43,134.25,134.21,3.3527]
[1726216624883,11.43,134.25,134.2,3.3529]
[1726216626088,2.6124,134.26,134.21,11.43]
[1726216626303,11.43,134.25,134.21,11.43]
[1726216626889,11.43,134.25,134.21,14.7826]
[1726216627295,11.43,134.25,134.21,11.43]
[1726216627799,11.43,134.24,134.21,11.43]
[1726216628488,11.43,134.24,134.21,14.7827]
[1726216628887,2.6124,134.26,134.21,14.7827]
[1726216629095,11.43,134.24,134.21,14.7827]
[1726216630415,2.6124,134.26,134.22,3.3524]
[1726216630594,2.6124,134.26,134.22,14.7824]
[1726216630803,14.0424,134.26,134.22,14.7824]
[1726216632595,14.0424,134.26,134.22,3.3524]
[1726216633197,14.0424,134.26,134.21,14.7826]
[1726216633505,14.0424,134.26,134.21,11.43]
[1726216634803,14.0424,134.26,134.22,3.3525]
[1726216636292,11.43,134.25,134.22,3.3525]
[1726216636903,11.43,134.25,134.21,14.7826]
[1726216650517,11.43,134.25,134.21,3.3526]
[1726216651511,2.6124,134.26,134.21,3.3526]
[1726216651710,11.43,134.24,134.21,3.3526]
[1726216655920,11.43,134.24,134.2,3.3529]
[1726216657617,11.43,134.24,134.21,3.3527]
[1726216657922,11.43,134.24,134.19,15.18586924]
[1726216658822,11.43,134.24,134.2,3.3529]
[1726216665131,14.0424,134.26,134.21,14.7826]
[1726216665932,14.0424,134.26,134.21,11.43]
[1726216669637,2.6124,134.26,134.21,11.43]
[1726216669943,247.87730654,134.27,134.22,14.7824]
[1726216670826,11.43,134.25,134.22,14.7824]
[1726216671037,11.43,134.25,134.22,11.43]
[1726216671345,11.43,134.25,134.21,16.0871]
[1726216672636,236.44730654,134.27,134.21,16.0871]
[1726216672828,236.44730654,134.27,134.22,3.3525]
[1726216673038,11.43,134.26,134.22,3.3525]
[1726216673222,236.44730654,134.27,134.22,3.3525]
[1726216673436,11.43,134.26,134.22,3.3525]
[1726216675338,11.43,134.25,134.22,3.3525]
[1726216675638,11.43,134.25,134.21,16.0871]
[1726216682042,11.43,134.25,134.21,4.6571]
[1726216682342,11.43,134.24,134.2,14.7829]
[1726216685239,11.43,134.24,134.21,3.3527]
[1726216687640,11.43,134.24,134.2,14.7829]
[1726216689451,11.43,134.24,134.21,3.3527]
[1726216691947,11.43,134.24,134.2,14.7828]
[1726216695454,11.43,134.26,134.22,11.43]
[1726216695957,11.43,134.25,134.21,3.3527]
[1726216697951,11.43,134.25,134.2,14.7828]
[1726216698153,11.43,134.25,134.2,3.3528]
[1726216698346,11.43,134.25,134.2,14.7828]
[1726216701153,14.1668,134.26,134.21,14.7827]
[1726216702246,14.1668,134.26,134.22,3.3524]
[1726216705162,2.7368,134.26,134.23,3.3522]
[1726216705361,11.43,134.26,134.23,3.3522]
[1726216705861,232.75854359,134.27,134.23,3.3522]
[1726216706061,244.18854359,134.27,134.23,3.3522]
[1726216706365,244.18854359,134.27,134.22,14.7824]
[1726216710667,11.43,134.26,134.22,14.7824]
[1726216715565,232.75854359,134.27,134.22,14.7824]
[1726216715760,244.18854359,134.27,134.22,14.7824]
[1726216717866,232.75854359,134.27,134.22,14.7824]
[1726216718061,244.18854359,134.27,134.22,14.7824]
[1726216723976,3.68523074,134.28,134.23,3.3521]
[1726216724178,11.43,134.28,134.23,14.7821]
[1726216724377,15.15399944,134.28,134.23,14.7821]
[1726216725381,11.43,134.27,134.23,14.7821]
[1726216726378,11.43,134.27,134.23,3.3521]